bitfinex/quotes_SOLUSD_20241008
["timestamp","ask_amount","ask_price","bid_price","bid_amount"]
[1728412131319,6.9697,143.48,143.44,37.48762861]
[1728412134937,6.9697,143.48,143.44,24.3996]
[1728412142039,6.9701,143.47,143.44,17.4285]
[1728412142335,6.9701,143.47,143.43,6.9718]
[1728412143618,6.9705,143.46,143.43,6.9718]
[1728412144014,6.9705,143.46,143.42,20.06042861]
[1728412144448,6.9705,143.46,143.42,6.9724]
[1728412147129,6.9698,143.48,143.45,6.9709]
[1728412147351,6.9693,143.49,143.45,6.971]
[1728412148548,6.9692,143.49,143.46,17.4264]
[1728412149441,7.09429,143.5,143.46,24.3968]
[1728412152051,6.9688,143.5,143.46,24.3968]
[1728412153247,6.9699,143.48,143.44,6.9711]
[1728412156552,6.9686,143.5,143.46,6.9702]
[1728412156727,6.9686,143.5,143.47,1.39379339]
[1728412157047,6.9686,143.5,143.46,6.9702]
[1728412157738,6.9692,143.49,143.45,37.48612861]
[1728412159130,6.9696,143.48,143.45,17.4272]
[1728412161761,6.9696,143.48,143.45,24.3981]
[1728412162055,17.54479,143.52,143.45,24.3981]
[1728412162056,6.9692,143.49,143.45,25.79203174]
[1728412163051,6.9692,143.49,143.45,24.3981]
[1728412163454,6.9692,143.49,143.46,1.3939285]
[1728412163962,17.4193,143.52,143.45,17.4272]
[1728412163963,6.9697,143.48,143.45,17.4272]
[1728412166264,6.9697,143.48,143.45,18.82113478]
[1728412166758,6.9697,143.48,143.45,17.4272]
[1728412167260,6.9697,143.48,143.46,1.39393497]
[1728412167434,6.9692,143.49,143.46,6.9705]
[1728412167636,6.9689,143.5,143.46,6.9705]
[1728412168644,17.4193,143.52,143.45,17.4272]
[1728412168848,0.12549,143.51,143.45,17.4272]
[1728412169274,6.9697,143.48,143.45,17.4272]
[1728412169949,0.12549,143.49,143.45,17.4272]
[1728412170153,7.09469,143.49,143.45,24.398]
[1728412170365,6.9696,143.48,143.45,17.4272]
[1728412171840,6.9696,143.48,143.45,24.3982]
[1728412181661,6.9701,143.47,143.44,6.9713]
[1728412181852,6.9701,143.47,143.43,6.9718]
[1728412182059,0.12549,143.49,143.42,17.4304]
[1728412182252,0.12549,143.49,143.42,24.4027]
[1728412182648,6.9716,143.44,143.4,6.9733]
[1728412183277,17.4276,143.46,143.38,1.21136572]
[1728412183569,6.9722,143.43,143.39,6.9739]
[1728412184963,6.9725,143.42,143.39,6.9739]
[1728412185152,6.972,143.43,143.39,6.9739]
[1728412185559,0.12549,143.45,143.38,18.64736572]
[1728412185560,6.9725,143.42,143.38,18.64736572]
[1728412185767,6.9731,143.41,143.38,17.436]
[1728412185972,0.12549,143.45,143.38,17.436]
[1728412186168,6.9727,143.42,143.38,24.4104]
[1728412195472,6.9732,143.41,143.38,17.436]
[1728412195685,15.43219,143.43,143.37,6.9748]
[1728412195973,6.9735,143.4,143.36,6.9752]
[1728412196481,6.974,143.39,143.36,6.9752]
[1728412197072,6.974,143.39,143.35,24.4144]
[1728412199156,6.9745,143.38,143.35,17.4387]
[1728412199779,6.9745,143.38,143.35,18.83370584]
[1728412200657,6.9749,143.37,143.33,20.06472861]
[1728412200953,6.9746,143.38,143.34,8.37145595]
[1728412201650,6.975,143.37,143.33,6.9765]
[1728412201854,6.975,143.37,143.31,19.68772861]
[1728412201855,6.20889,143.32,143.29,0.8437887]
[1728412202077,6.20889,143.32,143.19,6.9833]
[1728412202078,6.9813,143.24,143.19,6.9833]
[1728412202463,0.12549,143.25,143.18,17.4595]
[1728412202464,6.9818,143.23,143.18,17.4595]
[1728412203263,6.9818,143.23,143.19,1.39651863]
[1728412203553,6.9822,143.22,143.18,24.4436]
[1728412203868,6.9822,143.22,143.18,17.4595]
[1728412204278,6.9822,143.22,143.19,1.21331128]
[1728412204583,0.12549,143.23,143.19,1.21331128]
[1728412205951,27.23925942,143.28,143.2,1.39650849]
[1728412206156,0.12549,143.27,143.19,14.30133989]
[1728412206360,0.12549,143.25,143.2,6.9832]
[1728412206561,0.12549,143.25,143.21,6.9825]
[1728412206978,0.12549,143.25,143.22,8.37855166]
[1728412207181,0.12549,143.26,143.23,6.9817]
[1728412207386,0.12549,143.26,143.22,6.9822]
[1728412207565,7.10589,143.26,143.21,6.9827]
[1728412207770,6.9808,143.25,143.21,6.9827]
[1728412208079,6.9808,143.25,143.2,24.4403]
[1728412208276,0.12549,143.26,143.2,17.4572]
[1728412208277,6.9815,143.24,143.2,17.4572]
[1728412208582,6.9815,143.24,143.19,1.21331128]
[1728412208583,6.9813,143.24,143.19,1.21331128]
[1728412208965,23.776884,143.2,143.09,0.27949474]
[1728412209158,0.12549,143.16,143.09,0.27949474]
[1728412209488,7.11109,143.15,143.1,6.9879]
[1728412209675,6.9851,143.17,143.11,8.38466459]
[1728412209981,0.12549,143.16,143.11,6.9874]
[1728412210362,7.11089,143.16,143.11,6.9874]
[1728412210681,0.12549,143.16,143.12,6.987]
[1728412211077,7.11069,143.16,143.12,6.987]
[1728412211262,7.11069,143.16,143.1,17.4694]
[1728412211661,0.12549,143.16,143.1,17.4694]
[1728412211974,7.11109,143.15,143.1,24.4575]
[1728412213177,0.12549,143.16,143.11,6.9873]
[1728412213577,0.12549,143.16,143.12,6.987]
[1728412213769,0.12549,143.17,143.13,6.9866]
[1728412215568,19.68668339,143.17,143.13,6.9866]
[1728412216875,19.56119339,143.17,143.14,18.3085887]
[1728412217072,19.56119339,143.17,143.15,6.9855]
[1728412217471,6.9833,143.2,143.15,6.9855]
[1728412217673,6.1469,143.22,143.14,18.3085887]
[1728412217883,6.1469,143.22,143.16,6.9849]
[1728412218094,6.9834,143.2,143.16,6.9849]
[1728412218778,0.12549,143.21,143.17,8.38142153]
[1728412218975,7.10809,143.22,143.17,8.38142153]
[1728412219195,7.10809,143.22,143.17,6.9846]
[1728412219989,6.9814,143.24,143.19,6.9837]
[1728412220175,20.0,143.23,143.18,17.4599]
[1728412220373,23.3314,143.26,143.2,17.4572]
[1728412220568,6.9811,143.25,143.2,24.4403]
[1728412221094,6.9804,143.26,143.22,6.9821]
[1728412221577,6.9804,143.26,143.2,17.4572]
[1728412221578,6.9799,143.27,143.23,6.9817]
[1728412221899,14.25853767,143.28,143.23,6.9813]
[1728412221900,21.23833767,143.28,143.23,6.9813]
[1728412222066,21.23833767,143.28,143.23,8.37740582]
[1728412222394,21.23833767,143.28,143.23,6.9813]
[1728412222990,6.9798,143.27,143.23,6.9813]
[1728412223571,6.9803,143.26,143.22,6.9821]
[1728412223780,7.10629,143.25,143.21,17.4562]
[1728412223986,0.12549,143.25,143.21,24.4386]
[1728412224187,6.9803,143.26,143.22,6.9821]
[1728412224393,20.12549,143.27,143.24,6.9808]
[1728412224594,20.12549,143.27,143.23,24.4355]
[1728412224972,27.10539,143.27,143.23,24.4355]
[1728412227200,6.9804,143.26,143.23,17.4539]
[1728412228686,6.9799,143.27,143.23,17.4539]
[1728412229279,6.9799,143.27,143.23,24.4356]
[1728412229501,6.9799,143.27,143.24,1.39608391]
[1728412229685,6.9799,143.27,143.23,24.4356]
[1728412230107,6.9799,143.27,143.24,1.39608416]
[1728412230735,6.9799,143.27,143.23,24.4356]
[1728412232175,7.10489,143.28,143.23,24.4356]
[1728412232479,26.9788,143.29,143.25,6.9804]
[1728412232912,6.9793,143.28,143.24,6.9811]
[1728412233203,6.9793,143.28,143.23,17.4539]
[1728412233392,6.9793,143.28,143.23,24.4355]
[1728412233596,6.9793,143.28,143.24,6.9812]
[1728412234203,20.0,143.29,143.25,17.4511]
[1728412234406,26.9789,143.29,143.25,24.4315]
[1728412234903,6.9793,143.28,143.25,17.4511]
[1728412237697,20.0,143.29,143.25,17.4511]
[1728412237894,26.979,143.29,143.25,24.4318]
[1728412239505,20.0,143.29,143.26,6.9802]
[1728412239899,26.9789,143.29,143.25,24.4317]
[1728412240810,6.9793,143.28,143.25,17.4511]
[1728412243428,6.9793,143.28,143.24,6.9811]
[1728412245218,6.98,143.27,143.23,6.9817]
[1728412247132,7.10499,143.28,143.24,6.9811]
[1728412247421,6.9795,143.28,143.25,1.39592075]
[1728412247837,6.9789,143.29,143.26,6.9802]
[1728412248001,6.9794,143.28,143.25,6.9805]
[1728412248716,6.9797,143.28,143.24,24.434]
[1728412249307,6.9797,143.28,143.25,6.9807]
[1728412250220,6.979,143.29,143.25,6.9807]
[1728412251014,0.12549,143.3,143.25,6.9807]
[1728412251224,6.9794,143.28,143.24,24.4341]
[1728412251611,6.9799,143.27,143.24,17.4531]
[1728412251812,0.12549,143.3,143.24,17.4531]
[1728412252014,6.9794,143.28,143.24,24.4343]
[1728412252701,6.9794,143.28,143.25,6.9807]
[1728412252902,6.9794,143.28,143.24,24.4342]
[1728412253099,17.57199,143.3,143.21,30.57033487]
[1728412253434,6.9806,143.26,143.22,6.9818]
[1728412257931,6.9806,143.26,143.22,6.9818]
[1728412258436,6.9806,143.26,143.23,6.9817]
[1728412260920,6.9799,143.27,143.23,6.9817]
[1728412261236,7.10499,143.28,143.24,8.37727994]
[1728412263040,6.979,143.29,143.25,6.9807]
[1728412263511,6.9795,143.28,143.24,6.9811]
[1728412263711,6.98,143.27,143.23,24.4357]
[1728412263930,6.98,143.27,143.24,6.9812]
[1728412264432,0.12549,143.3,143.24,6.9812]
[1728412264632,6.9794,143.28,143.24,6.9812]
[1728412265533,6.9799,143.27,143.23,24.4356]
[1728412265739,0.12549,143.3,143.23,17.4541]
[1728412265740,6.9806,143.26,143.23,17.4541]
[1728412267641,6.9821,143.23,143.19,22.4063]
[1728412267827,6.9821,143.23,143.19,6.9833]
[1728412269842,6.9821,143.23,143.2,6.9832]
[1728412270014,6.9804,143.26,143.2,13.11413487]
[1728412270339,32.68471777,143.28,143.23,6.9814]
[1728412270340,6.9799,143.27,143.23,6.9814]
[1728412270918,6.9804,143.26,143.22,20.09613487]
[1728412271117,20.12549,143.28,143.15,24.45]
[1728412271118,16.5408,143.22,143.15,24.45]
[1728412271329,6.9841,143.19,143.15,24.4493]
[1728412271529,0.12549,143.21,143.16,6.9851]
[1728412271530,6.9833,143.2,143.16,6.9851]
[1728412272324,16.5408,143.22,143.17,1.39675549]
[1728412272537,6.9828,143.21,143.17,6.9843]
[1728412273141,23.5232,143.22,143.18,6.9841]
[1728412273525,16.5408,143.22,143.19,6.9836]
[1728412273729,6.9821,143.23,143.19,6.9836]
[1728412274945,20.0,143.24,143.18,13.11413487]
[1728412275150,26.9813,143.24,143.2,8.37955105]
[1728412276849,6.9818,143.23,143.19,24.4423]
[1728412277053,20.0,143.25,143.17,6.2564]
[1728412277238,6.9828,143.21,143.17,13.2407]
[1728412277441,6.9828,143.21,143.17,6.9843]
[1728412278044,6.9828,143.21,143.16,46.82553487]
[1728412278251,6.9828,143.21,143.18,6.9841]
[1728412278760,6.9824,143.22,143.18,6.9841]
[1728412280338,0.12549,143.24,143.16,46.82553487]
[1728412280537,6.9828,143.21,143.17,6.9845]
[1728412281534,6.9824,143.22,143.18,6.9841]
[1728412281851,6.9819,143.23,143.19,6.9836]
[1728412282741,6.9814,143.24,143.2,6.9832]
[1728412283958,6.9809,143.25,143.21,6.9826]
[1728412286063,6.9812,143.24,143.21,6.9826]
[1728412286244,6.9809,143.25,143.21,6.9826]
[1728412286841,6.9801,143.27,143.23,24.4358]
[1728412287371,6.9791,143.29,143.25,6.9804]
[1728412287584,6.9791,143.29,143.26,1.39583846]
[1728412288251,6.9791,143.29,143.25,6.9804]
[1728412288969,6.9785,143.3,143.26,6.9802]
[1728412289365,6.9789,143.29,143.25,24.4323]
[1728412289749,6.9793,143.28,143.25,17.4517]
[1728412289957,32.6022,143.32,143.22,17.4546]
[1728412289958,17.4462,143.3,143.22,17.4546]
[1728412290164,6.9804,143.26,143.22,6.9822]
[1728412290571,6.9806,143.26,143.22,6.9822]
[1728412290844,6.9808,143.25,143.21,40.1648]
[1728412291080,6.9808,143.25,143.21,24.4393]
[1728412291371,6.9806,143.26,143.22,6.9822]
[1728412292471,6.9809,143.25,143.21,24.4393]
[1728412294158,54.891,143.31,143.19,6.9836]
[1728412294159,6.9821,143.23,143.19,6.9836]
[1728412294364,6.9817,143.23,143.19,6.9836]
[1728412295073,15.95019,143.26,143.18,24.4436]
[1728412295074,6.9825,143.22,143.18,24.4436]
[1728412296165,6.9827,143.21,143.18,24.4436]
[1728412297472,20.0,143.25,143.19,6.9835]
[1728412297668,6.9822,143.22,143.18,24.4436]
[1728412298176,41.355674,143.24,143.15,17.4634]
[1728412298381,6.984,143.19,143.15,24.4488]
[1728412298559,6.9833,143.2,143.16,6.9851]
[1728412299372,6.9837,143.19,143.15,17.4634]
[1728412299569,6.9842,143.18,143.14,7.8297887]
[1728412300856,15.8047,143.2,143.14,0.8437887]
[1728412301266,6.9852,143.16,143.14,0.8437887]
[1728412303164,6.9856,143.15,143.14,0.8437887]
[1728412307288,6.9853,143.16,143.14,0.8437887]
[1728412307477,7.11019,143.17,143.14,0.8437887]
[1728412307992,12.3593368,143.19,143.16,6.9848]
[1728412308355,12.3593368,143.19,143.17,6.9845]
[1728412308985,6.9827,143.21,143.17,6.9845]
[1728412309576,6.9823,143.22,143.18,6.984]
[1728412311283,37.57889,143.24,143.17,17.4612]
[1728412311494,6.9828,143.21,143.17,24.4458]
[1728412311998,6.9824,143.22,143.18,6.9842]
[1728412312377,6.9819,143.23,143.19,8.38030902]
[1728412312585,26.9814,143.24,143.2,6.9832]
[1728412312790,6.9814,143.24,143.2,6.9832]
[1728412315381,23.2786,143.25,143.21,6.9825]
[1728412317898,12.49037225,143.27,143.21,6.9825]
[1728412318079,19.47027225,143.27,143.22,1.3962401]
[1728412318280,19.47027225,143.27,143.23,6.9817]
[1728412318497,12.49037225,143.27,143.21,17.4559]
[1728412318795,20.0,143.26,143.18,24.4439]
[1728412318976,6.9823,143.22,143.18,24.4439]
[1728412319983,6.9824,143.22,143.18,17.4598]
[1728412320296,6.9824,143.22,143.18,24.4439]
[1728412320603,0.12549,143.25,143.16,6.985]
[1728412320782,0.12549,143.25,143.17,6.9846]
[1728412320983,0.12549,143.25,143.15,33.8982]
[1728412321176,6.9823,143.22,143.18,6.9841]
[1728412321600,6.9823,143.22,143.17,24.4457]
[1728412322092,6.9833,143.2,143.17,17.4612]
[1728412322400,6.9833,143.2,143.16,6.985]
[1728412322903,6.9828,143.21,143.17,6.9846]
[1728412323674,6.9833,143.2,143.16,6.9851]
[1728412325900,20.12549,143.21,143.14,18.3085887]
[1728412326376,6.9845,143.18,143.14,18.3085887]
[1728412327003,6.9845,143.18,143.14,25.2945887]
[1728412327413,20.12549,143.21,143.14,0.8437887]
[1728412327584,6.9847,143.17,143.14,0.8437887]
[1728412327785,6.9843,143.18,143.14,0.8437887]
[1728412328284,6.9843,143.18,143.14,7.8297887]
[1728412328485,6.9847,143.17,143.14,0.8437887]
[1728412328682,6.9851,143.16,143.14,0.8437887]
[1728412329494,6.9847,143.17,143.14,0.8437887]
[1728412330305,0.12549,143.2,143.14,0.8437887]
[1728412330306,42.16699,143.15,143.14,0.8437887]
[1728412331293,6.9852,143.16,143.14,0.8437887]
[1728412331490,6.9856,143.15,143.14,0.8437887]
[1728412332898,7.11109,143.15,143.14,0.8437887]
[1728412336283,27.11109,143.15,143.14,0.8437887]
[1728412337000,50.887974,143.15,143.14,0.8437887]
[1728412337602,27.11109,143.15,143.14,0.8437887]
[1728412351793,26.9856,143.15,143.14,0.8437887]
[1728412352697,27.11109,143.15,143.14,0.8437887]
[1728412361016,34.38330728,143.15,143.14,0.8437887]
[1728412363003,58.16019128,143.15,143.14,0.8437887]
[1728412363507,34.25781728,143.15,143.14,0.8437887]
[1728412364823,15.7519,143.14,143.09,0.27949474]
[1728412365108,27.11359,143.1,143.09,0.27949474]
[1728412371245,6.9877,143.11,143.09,0.27949474]
[1728412377250,6.9881,143.1,143.09,0.27949474]
[1728412377453,7.11359,143.1,143.09,0.27949474]
[1728412377643,27.11359,143.1,143.09,0.27949474]
[1728412378759,14.26143006,143.11,143.09,0.27949474]
[1728412378936,6.9877,143.11,143.09,0.27949474]
[1728412380251,20.12549,143.13,143.09,0.27949474]
[1728412380457,6.9881,143.1,143.09,0.27949474]
[1728412382750,6.9877,143.11,143.09,0.27949474]
[1728412384071,6.9872,143.12,143.09,0.27949474]
[1728412384556,6.9879,143.11,143.09,0.27949474]
[1728412384761,20.0,143.13,143.09,0.27949474]
[1728412385451,7.11359,143.1,143.09,0.27949474]
[1728412389562,6.9881,143.1,143.09,0.27949474]
[1728412390157,6.9878,143.11,143.09,0.27949474]
[1728412391772,7.11359,143.1,143.09,0.27949474]
[1728412395333,6.9881,143.1,143.09,0.27949474]
[1728412396841,20.0,143.13,143.09,0.27949474]
[1728412397053,6.9868,143.13,143.09,7.26799474]
[1728412397460,19.65468536,143.15,143.09,7.26799474]
[1728412397760,19.65468536,143.15,143.09,0.27949474]
[1728412397761,6.9872,143.12,143.09,0.27949474]
[1728412401358,20.12549,143.14,143.09,0.27949474]
[1728412401563,6.987,143.13,143.09,7.26789474]
[1728412401868,0.12549,143.14,143.09,7.26789474]
[1728412402044,6.9871,143.12,143.09,7.26789474]
[1728412403555,6.9871,143.12,143.09,0.27949474]
[1728412404056,6.9881,143.1,143.09,0.27949474]
[1728412404257,7.11359,143.1,143.09,0.27949474]
[1728412409474,27.11359,143.1,143.09,0.27949474]
[1728412423167,34.37031566,143.1,143.09,0.27949474]
[1728412424067,27.11359,143.1,143.09,0.27949474]
[1728412430274,38.373346,143.1,143.09,0.27949474]
[1728412430471,62.15023,143.1,143.09,0.27949474]
[1728412431183,62.15023,143.1,143.09,9.474e-05]
[1728412431184,90.39633098,143.1,143.09,9.474e-05]
[1728412431489,62.15023,143.1,143.09,9.474e-05]
[1728412432570,50.890474,143.1,143.09,9.474e-05]
[1728412434905,58.14444312,143.1,143.09,9.474e-05]
[1728412435375,69.40419912,143.1,143.09,9.474e-05]
[1728412435576,0.12549,143.03,143.0,0.8437887]
[1728412435772,7.11729,143.03,143.0,0.8437887]
[1728412435972,6.992,143.02,143.0,0.8437887]
[1728412436270,7.11709,143.03,143.0,0.8437887]
[1728412436671,0.12549,143.03,143.0,7.8365887]
[1728412436981,0.12549,143.04,143.01,6.9924]
[1728412440078,0.12549,143.04,143.0,7.8365887]
[1728412441093,7.11659,143.04,143.0,7.8365887]
[1728412444077,6.9901,143.06,143.02,6.9916]
[1728412445393,17.4724,143.09,143.01,17.4808]
[1728412445394,6.9911,143.04,143.01,17.4808]
[1728412446375,6.9911,143.04,143.0,7.8363887]
[1728412446772,0.12549,143.02,143.0,0.8437887]
[1728412447292,7.11759,143.02,143.0,0.8437887]
[1728412448676,6.9912,143.04,143.0,7.8363887]
[1728412449100,0.12549,143.06,143.01,6.9921]
[1728412449393,7.11569,143.06,143.01,6.9921]
[1728412449697,6.9906,143.05,143.01,6.9921]
[1728412450778,7.25155758,143.08,143.04,6.9908]
[1728412450979,22.36245274,143.11,143.04,6.9908]
[1728412450980,22.36245274,143.11,143.06,6.9899]
[1728412451301,6.9882,143.1,143.06,6.9899]
[1728412451493,6.9882,143.1,143.05,6.9904]
[1728412452088,12.54866631,143.13,143.03,22.5006]
[1728412452294,6.9897,143.07,143.03,29.492]
[1728412452480,11.259756,143.1,143.02,24.4711]
[1728412452481,6.9901,143.06,143.02,24.4711]
[1728412453499,6.9897,143.07,143.02,17.4795]
[1728412453798,6.9897,143.07,143.03,6.9914]
[1728412454300,6.9897,143.07,143.02,17.4795]
[1728412454503,6.9897,143.07,143.02,24.4713]
[1728412454875,0.12549,143.05,143.02,24.4713]
[1728412455496,6.9904,143.06,143.02,24.4713]
[1728412455800,6.9897,143.07,143.03,6.9914]
[1728412457599,6.9891,143.08,143.03,8.38949246]
[1728412457798,6.9895,143.07,143.03,6.9914]
[1728412458000,6.99,143.06,143.02,24.4714]
[1728412459886,6.9896,143.07,143.03,6.9915]
[1728412460090,7.11469,143.08,143.04,6.9908]
[1728412460282,17.4702,143.11,143.05,8.3884556]
[1728412460283,6.9887,143.09,143.05,8.3884556]
[1728412460878,20.0,143.12,143.05,1.3980556]
[1728412461107,6.9882,143.1,143.06,6.9899]
[1728412467411,20.0,143.12,143.04,35.60369187]
[1728412467595,6.9872,143.12,143.08,6.9889]
[1728412469302,6.9867,143.13,143.09,6.9885]
[1728412469510,6.9867,143.13,143.08,17.4724]
[1728412469511,6.9866,143.13,143.1,6.988]
[1728412469721,6.9866,143.13,143.09,6.9882]
[1728412470707,26.9863,143.14,143.1,6.988]
[1728412472115,20.0,143.14,143.11,6.9875]
[1728412472487,19.25628485,143.15,143.11,6.9875]
[1728412472716,0.12549,143.16,143.1,17.4701]
[1728412473012,6.9857,143.15,143.11,6.9874]
[1728412473194,6.9861,143.14,143.1,37.60059187]
[1728412473710,6.9868,143.13,143.09,29.1814]
[1728412474088,6.986,143.15,143.11,6.9875]
[1728412474413,6.9861,143.14,143.1,6.9879]
[1728412475112,6.9877,143.11,143.07,6.9894]
[1728412479231,6.9881,143.1,143.06,30.7552]
[1728412479826,6.9887,143.09,143.06,23.7654]
[1728412479995,6.9882,143.1,143.06,30.7554]
[1728412481216,6.9886,143.09,143.06,23.7654]
[1728412484014,7.11469,143.08,143.04,6.9909]
[1728412484394,6.9887,143.09,143.05,6.9905]
[1728412489502,6.9891,143.08,143.04,6.9909]
[1728412490818,6.9891,143.08,143.05,6.9905]
[1728412491627,0.12549,143.1,143.05,6.9905]
[1728412491830,7.11369,143.1,143.06,6.9899]
[1728412492932,6.9882,143.1,143.06,8.38766618]
[1728412494316,6.9882,143.1,143.06,6.9899]
[1728412500817,6.9876,143.11,143.07,6.9891]
[1728412501137,6.9872,143.12,143.08,6.9889]
[1728412501311,6.9868,143.13,143.09,8.38605853]
[1728412501639,6.9863,143.14,143.1,6.9877]
[1728412501825,6.9859,143.15,143.11,6.9875]
[1728412502620,6.9861,143.14,143.11,6.9875]
[1728412504339,12.56747143,143.16,143.11,30.61139187]
[1728412504541,6.9851,143.17,143.13,6.9864]
[1728412505025,6.9845,143.18,143.14,8.38320376]
[1728412505218,12.5481303,143.19,143.15,13.14259187]
[1728412505429,12.5481303,143.19,143.16,6.9851]
[1728412505831,12.5481303,143.19,143.15,37.59189187]
[1728412505832,19.5318303,143.19,143.15,37.59189187]
[1728412506032,19.5318303,143.19,143.15,24.4493]
[1728412506533,12.5481303,143.19,143.13,13.14259187]
[1728412506838,6.9842,143.18,143.14,6.986]
[1728412507049,0.12549,143.18,143.1,6.0167]
[1728412507228,0.12549,143.18,143.1,19.15929187]
[1728412507922,6.9852,143.16,143.12,6.9871]
[1728412509725,6.9852,143.16,143.12,20.12969187]
[1728412509927,0.12549,143.18,143.12,13.14259187]
[1728412510145,26.9843,143.18,143.14,6.9861]
[1728412510356,26.9843,143.18,143.14,8.38304803]
[1728412510840,6.9847,143.17,143.13,37.59519187]
[1728412511038,0.12549,143.19,143.11,13.14259187]
[1728412511244,17.4625,143.17,143.11,13.14259187]
[1728412511442,6.9858,143.15,143.11,20.13009187]
[1728412512234,6.9852,143.16,143.12,6.987]
[1728412512440,6.985,143.17,143.13,6.9866]
[1728412515550,6.985,143.17,143.13,20.12919187]
[1728412516343,6.9858,143.15,143.11,24.4561]
[1728412516548,6.9862,143.14,143.11,17.4686]
[1728412516728,6.9859,143.15,143.11,24.4562]
[1728412517331,6.9865,143.14,143.1,13.0045]
[1728412518129,0.12549,143.15,143.08,17.4717]
[1728412519037,6.9868,143.13,143.09,6.9885]
[1728412519443,6.9874,143.12,143.08,24.4606]
[1728412520044,6.9876,143.11,143.08,17.4717]
[1728412521840,6.9881,143.1,143.07,6.9895]
[1728412522557,6.9881,143.1,143.06,6.99]
[1728412522738,17.4655,143.14,143.05,47.26749187]
[1728412522739,6.9891,143.08,143.05,17.4753]
[1728412522932,6.9887,143.09,143.05,24.4655]
[1728412523648,6.9882,143.1,143.06,6.99]
[1728412524151,6.9882,143.1,143.07,1.39777293]
[1728412524355,0.12549,143.11,143.07,6.9895]
[1728412524356,6.9879,143.11,143.07,6.9895]
[1728412524649,6.9879,143.11,143.05,30.61789187]
[1728412524860,6.9879,143.11,143.06,6.9899]
[1728412525850,20.12549,143.11,143.02,17.4791]
[1728412526066,6.99,143.06,143.02,24.471]
[1728412526359,20.12549,143.11,143.01,6.9923]
[1728412526360,6.9909,143.05,143.01,6.9923]
[1728412527761,6.9911,143.04,143.0,20.97928057]
[1728412527964,20.0,143.08,143.0,0.8437887]
[1728412527965,6.3259,143.08,143.0,0.8437887]
[1728412528163,6.9915,143.03,143.0,0.8437887]
[1728412528737,16.3622,143.06,143.0,0.8437887]
[1728412528944,6.9912,143.04,143.0,0.8437887]
[1728412529940,6.9916,143.03,143.0,0.8437887]
[1728412530139,6.9912,143.04,143.0,0.8437887]
[1728412530354,6.9907,143.05,143.01,8.390733]
[1728412530656,6.9907,143.05,143.01,6.9924]
[1728412531356,20.0,143.05,143.02,6.9917]
[1728412531573,6.9901,143.06,143.02,6.9917]
[1728412533749,6.9909,143.05,143.01,24.4729]
[1728412533959,20.12549,143.07,143.01,17.4805]
[1728412534260,6.9906,143.05,143.01,6.9921]
[1728412535346,20.12549,143.07,143.0,18.3257887]
[1728412535545,6.991,143.04,143.0,25.3186887]
[1728412536767,6.9901,143.06,143.01,6.9923]
[1728412537548,20.12549,143.07,143.0,13.98638057]
[1728412537758,20.0,143.08,143.02,17.4796]
[1728412537954,6.99,143.07,143.02,24.4715]
[1728412538355,6.9901,143.06,143.02,24.4715]
[1728412542075,7.11519,143.07,143.03,6.9912]
[1728412542969,26.9892,143.08,143.04,6.9909]
[1728412543154,7.27486434,143.11,143.05,1.39794854]
[1728412543358,6.9889,143.09,143.05,1.39794854]
[1728412543552,6.9906,143.05,143.01,17.4807]
[1728412543866,6.9902,143.06,143.01,24.4731]
[1728412544046,17.4721,143.09,143.01,24.4731]
[1728412544250,6.9911,143.04,143.0,13.98638057]
[1728412544455,43.902374,143.08,143.0,20.97918057]
[1728412544667,6.9909,143.05,143.0,20.97918057]
[1728412544857,6.9909,143.05,143.0,7.8365887]
[1728412546172,0.12549,143.06,143.0,0.8437887]
[1728412546370,7.11549,143.06,143.01,8.39029396]